Cogmind - Beta 11 @@@ ROGUE MODE // 2022.04.04 @ 19:04:05 Player: Azken Zutik Result: Destroyed self with Mini Grenade Launcher Performance ------------- Evolutions (3) 1500 Regions Visited (11) 2200 Robots Destroyed (634) 3170 Value Destroyed (14879) 14879 Prototype IDs (36) 720 Alien Tech Used (0) 0 Bonus (9513) 9513 TOTAL SCORE: 31982 Bonus ------- Triggered High Security 500 High Alert Combat Kills 7014 Follower Combat Kills 335 Entered Garrisons 400 Used RIF Installer 1000 Aligned with FarCom 300 Friendly Fire -36 Cogmind --------- Core Integrity 0/700 Matter 139/300 Energy 44/100 System Corruption 16% Temperature Critical (560) Movement Core (900) Ox17 Location -7/Factory Parts ------- > --- POWER (1) -------- (None) > --- PROPULSION (4) --- (None) > --- UTILITY (5) ------ High-capacity Storage Unit > --- WEAPON (3) ------- Mini Grenade Launcher Improved Grenade Launcher Missile Launcher > --- INVENTORY (20) --- Huge Storage Unit Superbattery (1500) High-capacity Matter Pod (200) Recoil Stabilizer Core Shielding Relay Coupler [NC] (29) Relay Coupler [NC] (29) Relay Coupler [NC] (28) Relay Coupler [Sentry] (24) Recalibrator EMP Blaster Grenade Launcher Improved Datajack Heavy Flail Peak State ------------ > --- POWER ------------ Improved Ion Engine > --- PROPULSION ------- Armored Treads Armored Treads Armored Treads Advanced Treads > --- UTILITY ---------- High-capacity Storage Unit Core Shielding Medium Reflective Plating Medium Reflective Plating Insulated Plating > --- WEAPON ----------- Improved Assault Rifle Improved Assault Rifle Enhanced Autogun > --- INVENTORY -------- Huge Storage Unit Superbattery High-capacity Matter Pod Core Shielding Relay Coupler [NC] Relay Coupler [NC] Relay Coupler [NC] Relay Coupler [Sentry] Long-range Tractor Beam Recalibrator Gauss Rifle EMP Blaster Grenade Launcher Mini Grenade Launcher Mini Grenade Launcher Improved Grenade Launcher Missile Launcher Improved Datajack Heavy Flail [Rating: 42] Favorites ----------- Power Ion Engine Engine Ion Engine Power Core Light Nuclear Core Propulsion Light Treads Treads Light Treads Leg Carbon-fiber Leg Wheel Compact Wheel Utility High-capacity Storage Unit Device Remote Shield Storage High-capacity Storage Unit Processor Advanced Targeting Computer Hackware Relay Coupler [NC] Protection Core Shielding Weapon Improved Assault Rifle Energy Gun EM Pulse Gun Ballistic Gun Improved Assault Rifle Launcher Mini Grenade Launcher Special Weapon Mining Laser Impact Weapon Heavy Flail Slashing Weapon Scythe Special Melee Weapon Improved Datajack Build | -11 -10 -10 -9 -9 -9 -8 -8 -8 -8 -8 -7 ------- Run | Scr Mat Min Mat Min Exi Min Mat Gar Mat Gar Fac Slots Evolved 6 | . . . 2 . . . 2 . . . 2 Power . | . . . . . . . . . . . . Propulsion 2 | . . . 1 . . . 1 . . . . Utility 3 | . . . 1 . . . . . . . 2 Weapon 1 | . . . . . . . 1 . . . . Parts Attached 344 | 7 50 18 48 8 5 23 51 29 57 16 32 Power 21 | 1 4 2 3 . . . 3 2 1 3 2 Engine 19 | 1 4 1 3 . . . 3 2 1 2 2 Core 2 | . . 1 . . . . . . . 1 . Reactor . | . . . . . . . . . . . . Propulsion 51 | 2 7 . 8 . 1 . 15 3 7 . 8 Treads 46 | 2 5 . 8 . 1 . 15 3 7 . 5 Leg 1 | . . . . . . . . . . . 1 Wheel 4 | . 2 . . . . . . . . . 2 Hover . | . . . . . . . . . . . . Flight . | . . . . . . . . . . . . Utility 55 | 2 8 1 7 . 1 1 9 6 11 3 6 Device 18 | 1 6 1 1 . . . 3 3 1 1 1 Storage 3 | 1 1 . . . 1 . . . . . . Processor 2 | . 1 . . . . . 1 . . . . Hackware 2 | . . . . . . . . . 2 . . Protection 30 | . . . 6 . . 1 5 3 8 2 5 Artifact . | . . . . . . . . . . . . Weapon 217 | 2 31 15 30 8 3 22 24 18 38 10 16 Energy Gun 5 | 2 1 . . . . . . . . . 2 Energy Cannon . | . . . . . . . . . . . . Ballistic Gun 107 | . 13 9 14 4 . 12 15 8 22 4 6 Ballistic Cannon . | . . . . . . . . . . . . Launcher 72 | . 13 1 14 3 2 10 5 5 11 1 7 Special Weapon 10 | . 4 5 1 . . . . . . . . Impact Weapon 12 | . . . . . . . 3 4 1 4 . Slashing Weapon 4 | . . . 1 1 1 . 1 . . . . Piercing Weapon . | . . . . . . . . . . . . Special Melee Weapon 7 | . . . . . . . . 1 4 1 1 Unidentified Prototypes 2 | . . . 1 . . . . . 1 . . Parts Lost 40 | . 4 . 4 . . 1 7 3 . 2 19 Power 4 | . 1 . 1 . . . . . . 1 1 Propulsion 9 | . 1 . 1 . . . 1 1 . . 5 Utility 14 | . 1 . 1 . . 1 2 2 . 1 6 Weapon 13 | . 1 . 1 . . . 4 . . . 7 Highest Loss Streak 12 | . 2 . 4 . . 1 2 2 . 1 12 To Critical Strikes . | . . . . . . . . . . . . Average Slot Usage (%) 99 | . 98 99 99 100 88 99 99 99 99 99 89 Engine 9 | . 13 13 10 11 11 11 9 9 9 1 6 Core 1 | . . . . . . . . . . 7 . Treads 32 | . 27 28 32 33 33 33 35 35 36 36 19 Device 7 | . 13 14 2 11 11 11 6 6 . 1 3 Storage 10 | . 14 14 11 11 11 11 9 9 9 9 7 Protection 10 | . . . 19 11 11 10 10 11 16 16 23 Ballistic Gun 20 | . 12 23 19 19 . 20 24 23 25 22 15 Launcher 2 | . 9 3 2 1 . 1 . . . . 1 Naked Turns . | . . . . . . . . . . . . Heaviest Build 77 | 12 32 36 39 40 59 59 67 66 68 67 77 Greatest Support 82 | 40 40 40 63 60 60 60 80 80 82 82 82 Greatest Overweight (x) 4 | . 3 . . . . . 1 . . . 4 Average Overweight (x) . | . . . . . . . . . . . . Largest Inventory Capacity 20 | 8 15 15 15 15 20 20 20 20 20 20 20 Average Capacity 18 | 6 13 15 15 15 18 20 20 20 20 20 20 Most Carried 20 | 8 15 15 15 15 20 20 20 20 20 20 20 Average Carried 17 | 2 11 14 14 14 16 19 19 18 19 19 18 Final Capacity 20 | 8 15 15 15 15 20 20 20 20 20 20 20 Final Carried 20 | 8 15 15 15 15 19 20 20 20 20 20 20 Class Distribution -------------------- 31% | Scavenger-Mutant 29% | Mutant 11% | Scavenger-Tank 11% | Tank 8% | Commander-Mutant Dominant Class ---------------- Mutant | -10/Materials Mutant | -10/Mines Mutant | -9/Materials Scavenger-Mutant | -9/Mines Scavenger-Mutant | -9/Exiles Scavenger-Mutant | -8/Mines Scavenger-Tank | -8/Materials Scavenger-Mutant | -8/Garrison Tank | -8/Materials Commander-Mutant | -8/Garrison Bothacker-Mutant | -7/Factory Resources | -11 -10 -10 -9 -9 -9 -8 -8 -8 -8 -8 -7 ----------- Run | Scr Mat Min Mat Min Exi Min Mat Gar Mat Gar Fac Matter Collected 16452 | 351 2308 2021 2014 309 195 1778 2409 1331 1877 1063 796 Remotely 1518 | . 800 . . . . . . . . . 718 Salvage Created 21663 | 384 3298 2909 2661 512 . 1673 3665 921 3080 1458 1102 Parts 1367 | 26 231 218 233 32 . 109 189 59 159 67 44 Haulers Intercepted 20 | . 2 . 6 . . . 6 . 6 . . Recyclers Shooed 13 | . 2 2 4 2 . 1 . . 1 . 1 Parts Field Recycled . | . . . . . . . . . . . . Retrieved Matter . | . . . . . . . . . . . . Parts Self-Destructed . | . . . . . . . . . . . . Prevented . | . . . . . . . . . . . . Kills | -11 -10 -10 -9 -9 -9 -8 -8 -8 -8 -8 -7 ------- Run | Scr Mat Min Mat Min Exi Min Mat Gar Mat Gar Fac Combat Hostiles Destroyed 329 | . 64 5 56 8 . 18 55 29 45 30 19 Melee 1 | . . . . . . . 1 . . . . Guns 158 | . 5 . 16 4 . 5 46 16 26 30 10 AOE 168 | . 59 5 40 4 . 13 8 13 19 . 7 Classes Destroyed 18 | 3 7 . 4 1 . 1 . 1 . . 1 Worker 135 | 4 24 29 28 4 . 24 18 . 3 . 1 Builder 85 | . 15 20 13 2 . 20 10 . 3 . 2 Tunneler 59 | 9 1 21 1 3 . 21 1 . 2 . . Hauler 20 | . 2 . 6 . . . 6 . 6 . . Recycler 57 | 1 12 20 5 2 . . 5 . 10 . 2 Mechanic 14 | . 7 . 1 . . . 3 . 2 . 1 Operator 5 | . 1 . 2 . . . 2 . . . . Watcher 17 | . 3 . 4 . . . 2 1 5 1 1 Swarmer 36 | . 6 3 . 4 . 7 3 8 2 3 . Cutter 2 | . . . . . . . . 2 . . . Grunt 224 | . 58 2 38 3 . 9 40 15 28 21 10 Brawler 15 | . . . 5 . . . 4 . 3 1 2 Duelist 9 | . . . 1 . . . 1 . 2 3 2 Protector 7 | . . . 5 . . . . . 1 . 1 Sentry 28 | . . . 7 . . . 6 4 8 2 1 Hunter 6 | . . . . . . 2 1 . 1 . 2 Programmer 1 | . . . . . . . . . . . 1 Assembled 1 | . . . . 1 . . . . . . . Best Kill Streak 26 | 4 20 8 26 6 . 5 11 6 7 5 11 Combat Bots Only 16 | . 16 3 14 4 . 4 8 6 5 5 5 Max Kills in Single Turn 7 | 1 7 3 6 3 . 3 3 4 5 2 2 Gunslinging 1 | . . . 1 1 . . 1 . . 1 . Exploded 6 | . 6 3 5 3 . 3 2 4 5 . 1 Melee 1 | . . . . . . . 1 . . . . Uniques/NPCs Destroyed . | . . . . . . . . . . . . Combat | -11 -10 -10 -9 -9 -9 -8 -8 -8 -8 -8 -7 -------- Run | Scr Mat Min Mat Min Exi Min Mat Gar Mat Gar Fac Damage Taken 11627 | . 964 . 1285 45 . 547 2323 777 1180 1396 3110 Core 1590 | . 184 . 213 15 . 64 200 23 121 67 703 Absorbed by Shields 690 | . . . . 10 . 158 421 101 . . . Redirected to Shielding 262 | . . . 46 . . 7 30 80 21 15 63 Regen/Repaired (Parts) 1658 | . 113 . 44 . . . 306 . 102 723 370 Core Remaining (%) 44 | 100 . 26 . . . 27 . . . 25 . Volleys Fired 1388 | 39 234 191 157 30 . 146 204 71 131 101 84 Largest 3 | 2 2 2 2 2 . 2 3 3 3 3 3 Hottest 125 | 90 100 120 60 60 . 60 73 78 83 71 125 Shots Fired 2939 | 77 314 374 302 59 . 287 563 191 360 242 170 Gun 2645 | 77 194 362 251 55 . 263 547 179 336 240 141 Cannon . | . . . . . . . . . . . . Launcher 275 | . 106 7 51 4 . 24 16 12 24 2 29 Special 19 | . 14 5 . . . . . . . . . Kinetic 2429 | . 92 362 251 55 . 263 547 179 336 240 104 Thermal 133 | 77 14 5 . . . . . . . . 37 Explosive 257 | . 106 7 51 4 . 24 16 12 24 2 11 Electromagnetic 120 | . 102 . . . . . . . . . 18 Robot Hit Streak 32 | 6 13 12 23 9 . 23 22 15 21 18 32 Robot Miss Streak 9 | 4 6 4 4 3 . 2 5 6 9 4 8 Penetration Max . | . . . . . . . . . . . . Secondary Targets 25 | . . . 2 1 . . 7 . 5 10 . Max Gunslinging Chain 1 | . . . 1 1 . . 1 . 1 1 . Shots Hit Robots 1796 | 42 109 200 190 30 . 181 405 111 237 176 115 Core Hits 1155 | 15 177 106 180 20 . 117 192 58 154 65 71 Critical Kills 6 | . . 2 1 . . . 2 . . 1 . Critical Parts Destroyed 10 | . . 1 . . . 1 2 1 3 1 1 Critical Strikes 19 | 2 1 3 1 . . 1 4 1 3 2 1 Burn 2 | 2 . . . . . . . . . . . Destroy 14 | . . 3 1 . . 1 2 1 3 2 1 Corrupt 1 | . 1 . . . . . . . . . . Smash 2 | . . . . . . . 2 . . . . Melee Attacks 85 | . . . 1 1 . . 17 26 11 26 3 Impact 53 | . . . . . . . 14 14 1 24 . Slashing 5 | . . . 1 1 . . 3 . . . . Piercing . | . . . . . . . . . . . . Sneak Attacks 31 | . . . . . . . 6 12 8 2 3 Combat Hostiles . | . . . . . . . . . . . . Follow-up Attacks . | . . . . . . . . . . . . Damage Inflicted 46731 | 511 7791 3432 7656 635 . 3697 8779 2290 5861 2762 3317 Guns 26395 | 511 1425 3065 2807 457 . 2658 6042 1566 3525 2762 1577 Cannons . | . . . . . . . . . . . . Explosions 19586 | . 6342 363 4849 178 . 1039 2018 724 2336 . 1737 Melee 719 | . . . . . . . 719 . . . . Ramming 3 | . . . . . . . . . . . 3 Kinetic 24817 | . 724 3065 2807 457 . 2658 6042 1566 3525 2762 1211 Thermal 1246 | 511 280 4 . . . . . . . . 451 Explosive 18541 | . 6086 363 4849 178 . 1039 2018 724 2336 . 948 Electromagnetic 1405 | . 701 . . . . . . . . . 704 Impact 719 | . . . . . . . 719 . . . . Slashing . | . . . . . . . . . . . . Piercing . | . . . . . . . . . . . . Highest Corruption 15 | . 2 2 1 1 1 1 . . . . 15 Average Corruption 1 | . 1 2 1 1 1 1 . . . . 10 Corruption Purged . | . . . . . . . . . . . . Corruption Blocked . | . . . . . . . . . . . . Effects 203 | . 36 59 23 4 7 55 . . . . 19 Message Errors 36 | . 5 16 1 1 2 7 . . . . 4 Matter Fused 50 | . 9 13 11 1 1 14 . . . . 1 Heat Flow Errors 30 | . 4 9 1 1 . 12 . . . . 3 Energy Discharges 26 | . 5 6 3 . 2 8 . . . . 2 Data Loss (minor) 24 | . 6 6 1 . 1 6 . . . . 4 Data Loss (major) 8 | . 1 4 1 . . 1 . . . . 1 Misfires 10 | . 3 . 4 1 . 2 . . . . . Alerts 9 | . 1 3 1 . 1 2 . . . . 1 Weapon Failures 10 | . 2 2 . . . 3 . . . . 3 Overload Shots . | . . . . . . . . . . . . Overflow Damage 797 | . 81 18 99 8 . . 478 . 19 . 94 Projectiles . | . . . . . . . . . . . . Explosions 333 | . 81 18 99 8 . . 14 . 19 . 94 Melee 464 | . . . . . . . 464 . . . . Knockbacks 3 | . . . . . . . 3 . . . . Impact 3 | . . . . . . . 3 . . . . Kinetic . | . . . . . . . . . . . . Secondary . | . . . . . . . . . . . . Self-Inflicted Damage 427 | . 154 . 69 . . 19 39 . . . 146 Shots 16 | . 7 . 3 . . 1 2 . . . 3 Rammed 1 | . . . . . . . . . . . 1 Targets Rammed 1 | . . . . . . . . . . . 1 Kicked . | . . . . . . . . . . . . Crushed . | . . . . . . . . . . . . Highest Temperature 769 | 195 248 271 172 144 . 255 194 428 190 349 769 Average Temperature 67 | 85 33 31 24 80 . 86 42 92 29 91 209 Received Heat Transfer 4534 | . 351 . 552 5 . 143 998 403 675 909 498 Effects 49 | . . . . . . . . 1 . 4 44 Shutdowns 5 | . . . . . . . . . . . 5 Energy Bleed 9 | . . . . . . . . 1 . 1 7 Interference 8 | . . . . . . . . . . 3 5 Matter Decay 2 | . . . . . . . . . . . 2 Short Circuit 6 | . . . . . . . . . . . 6 Damage (minor) 4 | . . . . . . . . . . . 4 Damage (major) 12 | . . . . . . . . . . . 12 Damage (core) 3 | . . . . . . . . . . . 3 Siege Activations . | . . . . . . . . . . . . Robots Corrupted 2 | . . . . . . . . . . . 2 Combat Hostiles 2 | . . . . . . . . . . . 2 Parts Fried 23 | . 2 . . . . . 11 . . . 10 Impact Corruptions 9 | . . . . . . . 9 . . . . Robots Melted . | . . . . . . . . . . . . Combat Hostiles . | . . . . . . . . . . . . Parts Melted 4 | 3 . . . . . . . . . . 1 Heat Transferred 2588 | 1523 300 25 . . . . . . . . 740 Parts Sabotaged . | . . . . . . . . . . . . Parts Stolen . | . . . . . . . . . . . . Parts Stripped . | . . . . . . . . . . . . Power Chain Reactions 12 | . 7 . . . . . . . . . 5 Missiles Intercepted . | . . . . . . . . . . . . Alert | -11 -10 -10 -9 -9 -9 -8 -8 -8 -8 -8 -7 ------- Run | Scr Mat Min Mat Min Exi Min Mat Gar Mat Gar Fac Peak Influence 2607 | 70 2607 1206 2117 1066 . 261 1004 1603 1460 1945 1193 Initial 1100 | . . 1100 433 802 . . 3 652 781 949 1020 Average 935 | 17 1207 1069 1463 902 . 154 461 1393 1105 1455 1014 Maximum Alert Level 5 | . 5 4 5 3 . 1 3 5 4 5 4 Low Security (%) 21 | 100 4 . . . . 90 24 . . . . Level 1 3 | . 8 . . . . 9 11 . . . . Level 2 9 | . 9 . 18 . . . 58 1 . . . Level 3 22 | . 5 70 10 100 . . 5 12 51 13 87 Level 4 33 | . 52 29 19 . . . . 79 48 62 12 Level 5 8 | . 12 . 50 . . . . 7 . 24 . High Security . | . 7 . . . . . . . . . . Max Security . | . . . . . . . . . . . . Sterilizations 4 | . 1 . 1 . . . 1 . 1 . . Squads Dispatched 67 | . 19 . 10 1 . 3 11 . 13 . 10 Investigation 18 | . 10 . . . . . 3 . 5 . . Extermination 1 | . . . . . . . . . . . 1 Reinforcement 17 | . 1 . 4 1 . 3 4 . 2 . 2 Assault 24 | . 8 . 6 . . . 3 . 4 . 3 Garrison 7 | . . . . . . . 1 . 2 . 4 Intercept . | . . . . . . . . . . . . Searches Triggered . | . . . . . . . . . . . . Construction Impeded 7 | . . . 1 1 . 3 . . . . 2 Haulers Reinforced . | . . . . . . . . . . . . Active Scanning Responses . | . . . . . . . . . . . . Cargo Convoy Interrupts . | . . . . . . . . . . . . Stealth | -11 -10 -10 -9 -9 -9 -8 -8 -8 -8 -8 -7 --------- Run | Scr Mat Min Mat Min Exi Min Mat Gar Mat Gar Fac Distress Signals 11 | . 1 . 2 1 . 1 3 . 2 . 1 Communications Jammed . | . . . . . . . . . . . . Distress Signals . | . . . . . . . . . . . . Times Spotted 461 | . 96 2 79 12 . 12 82 24 81 31 42 Peak Tracking Total 10 | . 10 2 8 7 . 4 6 5 6 5 10 Tactical Retreats 21 | . 1 . 3 1 . . 4 2 5 . 5 Traps | -11 -10 -10 -9 -9 -9 -8 -8 -8 -8 -8 -7 ------- Run | Scr Mat Min Mat Min Exi Min Mat Gar Mat Gar Fac Traps Triggered 9 | . 3 . 1 . . . 2 . 3 . . Indirectly . | . . . . . . . . . . . . Trap Hack Attempts 33 | . . . . . . . . 20 . 13 . Triggered . | . . . . . . . . . . . . Disarmed 4 | . . . . . . . . . 4 . . Reprogrammed 1 | . . . . . . . . 1 . . . Reused . | . . . . . . . . . . . . Traps Extracted . | . . . . . . . . . . . . Installed . | . . . . . . . . . . . . Triggered . | . . . . . . . . . . . . Machines | -11 -10 -10 -9 -9 -9 -8 -8 -8 -8 -8 -7 ---------- Run | Scr Mat Min Mat Min Exi Min Mat Gar Mat Gar Fac Machines Disabled 50 | . 19 4 3 4 . 1 3 6 4 6 . Max in Single Turn 2 | . 2 1 1 2 . 1 1 1 1 1 . Garrison Relay 10 | . . . . . . . . 5 . 5 . Machines Sabotaged . | . . . . . . . . . . . . Garrisons Compromised . | . . . . . . . . . . . . Overloaded Fab Kills . | . . . . . . . . . . . . Hacking | -11 -10 -10 -9 -9 -9 -8 -8 -8 -8 -8 -7 --------- Run | Scr Mat Min Mat Min Exi Min Mat Gar Mat Gar Fac Machines Accessed 42 | . 9 . 4 . 2 . 12 . 13 . 2 Terminals 23 | . 6 . 3 . . . 6 . 8 . . Fabricators . | . . . . . . . . . . . . Repair Stations 6 | . 1 . 1 . . . 2 . 1 . 1 Recycling Units 6 | . 2 . . . . . 2 . 1 . 1 Scanalyzers 3 | . . . . . . . 1 . 2 . . Garrison Access 2 | . . . . . . . 1 . 1 . . Total Hacks 111 | . 23 . 7 . 2 . 43 . 34 . 2 Successful 73 | . 17 . 5 . 2 . 29 . 18 . 2 Failed 36 | . 5 . 2 . . . 13 . 16 . . Catastrophic 4 | . . . 1 . . . 2 . 1 . . Database Lockouts 2 | . 1 . . . . . 1 . . . . Manual 56 | . 18 . 4 . 1 . 16 . 15 . 2 Terminals 65 | . 15 . 5 . . . 23 . 22 . . Fabricators . | . . . . . . . . . . . . Repair Stations 23 | . 5 . 2 . . . 10 . 5 . 1 Recycling Units 7 | . 3 . . . . . 2 . 1 . 1 Scanalyzers 12 | . . . . . . . 7 . 5 . . Garrison Access 2 | . . . . . . . 1 . 1 . . Terminal Hacks 18 | . 2 . 1 . 2 . 6 . 7 . . Record 1 | . . . . . 1 . . . . . . Part Schematic 2 | . 1 . . . . . 1 . . . . Robot Analysis 1 | . 1 . . . . . . . . . . Prototype ID Bank 5 | . . . 1 . . . 1 . 3 . . Unreport Threat 3 | . . . . . . . 2 . 1 . . Locate Traps 1 | . . . . . . . 1 . . . . Disarm Traps 1 | . . . . . . . . . 1 . . Hauler Manifests 2 | . . . . . . . 1 . 1 . . Zone Layout 1 | . . . . . . . . . 1 . . EX-Prototype ID Bank 1 | . . . . . 1 . . . . . . Fabricator Hacks . | . . . . . . . . . . . . Repair Station Hacks 15 | . 4 . 2 . . . 8 . 1 . . Scan Component 8 | . 2 . 1 . . . 4 . 1 . . Repair 7 | . 2 . 1 . . . 4 . . . . Recycling Unit Hacks . | . . . . . . . . . . . . Scanalyzer 10 | . . . . . . . 6 . 4 . . Insert Component 5 | . . . . . . . 3 . 2 . . Analyze 5 | . . . . . . . 3 . 2 . . Garrison Access Hacks 2 | . . . . . . . 1 . 1 . . Unlock Access 2 | . . . . . . . 1 . 1 . . Unauthorized Hacks 28 | . 11 . 2 . . . 8 . 5 . 2 Terminals 20 | . 9 . 2 . . . 6 . 3 . . Botnet 11 | . 3 . 1 . . . 4 . 3 . . Disrupt 2 | . . . . . . . 2 . . . . Search 7 | . 6 . 1 . . . . . . . . Fabricators . | . . . . . . . . . . . . Repair Stations 1 | . . . . . . . . . . . 1 Mechanics 1 | . . . . . . . . . . . 1 Recycling Units 6 | . 2 . . . . . 2 . 1 . 1 Reject 1 | . . . . . . . . . . . 1 Tunnel 5 | . 2 . . . . . 2 . 1 . . Scanalyzers 1 | . . . . . . . . . 1 . . Extract 1 | . . . . . . . . . 1 . . Garrison Access . | . . . . . . . . . . . . Data Cores Recovered . | . . . . . . . . . . . . Used . | . . . . . . . . . . . . Hacking Detections 23 | . 4 . 3 . . . 8 . 8 . . Full Trace Events 1 | . 1 . . . . . . . . . . Feedback Events 1 | . 1 . . . . . . . . . . Corruption 1 | . 1 . . . . . . . . . . Feedback Blocked . | . . . . . . . . . . . . Robot Schematics Acquired . | . . . . . . . . . . . . Robots Built . | . . . . . . . . . . . . Authchips . | . . . . . . . . . . . . Time . | . . . . . . . . . . . . Total Robot Build Rating . | . . . . . . . . . . . . Part Schematics Acquired 8 | . 1 . . . . . 4 . 3 . . Parts Built . | . . . . . . . . . . . . Authchips . | . . . . . . . . . . . . Time . | . . . . . . . . . . . . Total Part Build Rating . | . . . . . . . . . . . . Parts Repaired 7 | . 2 . 1 . . . 4 . . . . Time 193 | . 52 . 26 . . . 115 . . . . Parts Recycled . | . . . . . . . . . . . . Recycled Matter . | . . . . . . . . . . . . Retrieved Matter . | . . . . . . . . . . . . Retrieved Components . | . . . . . . . . . . . . Parts Scanalyzed 5 | . . . . . . . 3 . 2 . . Part Schematics Acquired 5 | . . . . . . . 3 . 2 . . Parts Damaged 2 | . . . . . . . . . 2 . . Bothacking | -11 -10 -10 -9 -9 -9 -8 -8 -8 -8 -8 -7 ------------ Run | Scr Mat Min Mat Min Exi Min Mat Gar Mat Gar Fac Used RIF Installer 2 | . . . . . . . . 1 . 1 . Alert ID Control 1 | . . . . . . . . . . 1 . Robots Hacked 10 | . . . . . . . . . 7 . 3 Non-combat 9 | . . . . . . . . . 6 . 3 Combat 1 | . . . . . . . . . 1 . . Robot Hacks Applied 11 | . . . . . . . . . 8 . 3 no_distress 4 | . . . . . . . . . 3 . 1 find_chute 1 | . . . . . . . . . . . 1 find_recycling 1 | . . . . . . . . . . . 1 purge_threat 2 | . . . . . . . . . 2 . . find_garrison 1 | . . . . . . . . . 1 . . formatsys_low 1 | . . . . . . . . . 1 . . formatsys_high 1 | . . . . . . . . . 1 . . Relay Couplers Released 34 | . . . . . . . . 18 . 16 . Machine Destruction 34 | . . . . . . . . 18 . 16 . Attached 2 | . . . . . . . . . 2 . . Fabnet Peak Effective % . | . . . . . . . . . . . . Robots Rewired 12 | . . . . . . . . 6 . 6 . Allies Hacked . | . . . . . . . . . . . . Hacks Repelled . | . . . . . . . . . . . . Allies | -11 -10 -10 -9 -9 -9 -8 -8 -8 -8 -8 -7 -------- Run | Scr Mat Min Mat Min Exi Min Mat Gar Mat Gar Fac Total Allies 19 | . . 2 . 3 . . . 6 2 6 . Largest Group 7 | . . 2 2 3 . . . 6 7 7 7 Highest-Rated Group 123 | . . 50 50 40 . . . 108 123 94 94 Highest-Rated Ally 31 | . . 31 31 16 . . . 18 19 19 19 Total Orders 74 | . . . . 2 . . . 7 21 35 9 STAY 45 | . . . . . . . . 6 11 21 7 ROAM 1 | . . . . 1 . . . . . . . FOLLOW 12 | . . . . 1 . . . 1 5 4 1 GUARD 1 | . . . . . . . . . 1 . . AID 15 | . . . . . . . . . 4 10 1 Ally Attacks 75 | . . . 11 7 . . . . 23 4 30 Total Damage 1181 | . . . 20 50 . . . . 539 66 506 Kills 14 | . . . . . . . . . 9 1 4 Allies Corrupted 1 | . . . 1 . . . . . . . . Allies Melted 1 | . . . . . . . . . 1 . . Intel | -11 -10 -10 -9 -9 -9 -8 -8 -8 -8 -8 -7 ------- Run | Scr Mat Min Mat Min Exi Min Mat Gar Mat Gar Fac Robot Analysis Total 1 | . 1 . . . . . . . . . . Derelict Logs Recovered 2 | . . 2 . . . . . . . . . Drone Launches . | . . . . . . . . . . . . Drone Recoveries . | . . . . . . . . . . . . Exploration | -11 -10 -10 -9 -9 -9 -8 -8 -8 -8 -8 -7 ------------- Run | Scr Mat Min Mat Min Exi Min Mat Gar Mat Gar Fac Turns Passed 43220 | 999 4358 4905 2274 924 1102 7494 5086 4734 4202 6161 981 Spaces Moved 16574 | 144 2102 2607 666 510 572 896 1241 2483 1861 3141 351 Core 61 | 61 . . . . . . . . . . . Treads 16410 | 83 2037 2607 666 510 572 896 1241 2483 1861 3141 313 Legs . | . . . . . . . . . . . . Wheels 103 | . 65 . . . . . . . . . 38 Hover . | . . . . . . . . . . . . Flight . | . . . . . . . . . . . . Fastest Speed 50 | 50 110 160 160 160 160 160 160 160 156 163 160 Average Speed 160 | 113 158 160 160 160 160 160 160 160 161 163 178 Slowest Speed 410 | 160 160 160 160 160 160 160 240 160 163 163 410 Overloaded Moves . | . . . . . . . . . . . . Propulsion Burnouts . | . . . . . . . . . . . . Robots Hopped . | . . . . . . . . . . . . Cave-ins Triggered . | . . . . . . . . . . . . Exploration Rate (%) 66 | 4 98 99 43 86 70 37 71 93 89 96 9 Regions Visited 11 Branch Regions 4 Pre-discovered Areas 7 | . 2 1 . . 1 . 2 . 1 . . Known Exits Taken 2 | . . . . . . . 1 . 1 . . Unknown Exits Taken 7 | 1 1 1 1 1 1 1 . . . . . Scrap Searched 3 | . . 1 . 1 . 1 . . . . . Spaces Dug 33 | . 7 1 1 . . . 7 6 1 10 . Terrain Destroyed 1200 | . 449 70 212 21 . 154 89 23 101 33 48 Melee 25 | . . . 1 . . . 7 6 1 10 . Projectile 3 | . . 1 . . . . . . . . 2 AOE 1172 | . 449 69 211 21 . 154 82 17 100 23 46 Terrain Rammed . | . . . . . . . . . . . . Walls Destroyed . | . . . . . . . . . . . . Machines Disabled . | . . . . . . . . . . . . Actions | -11 -10 -10 -9 -9 -9 -8 -8 -8 -8 -8 -7 --------- Run | Scr Mat Min Mat Min Exi Min Mat Gar Mat Gar Fac Total 30638 | 899 2796 3027 1576 555 759 6661 3920 3101 2798 3992 554 Wait 11900 | 702 348 194 662 5 173 5585 2349 449 691 669 73 Move 16563 | 143 2101 2606 665 509 571 895 1240 2482 1860 3140 351 Hop . | . . . . . . . . . . . . Pick Up 134 | 8 31 8 19 1 6 7 25 10 13 3 3 Fast Attach 69 | 7 11 2 7 . . . 15 2 15 2 8 Attach 42 | . 3 1 6 . 1 1 11 4 1 2 12 Detach 12 | . 1 . . . 1 . 3 2 1 . 4 Swap 233 | . 36 15 35 8 4 22 25 23 41 12 12 Drop 158 | . 31 10 24 1 3 5 31 12 34 4 3 Fire 1388 | 39 234 191 157 30 . 146 204 71 131 101 84 Melee 85 | . . . 1 1 . . 17 26 11 26 3 Ram . | . . . . . . . . . . . . Kick . | . . . . . . . . . . . . Crush 1 | . . . . . . . . . . . 1 Escape Stasis . | . . . . . . . . . . . . Rewire 20 | . . . . . . . . . . 20 . Trap 33 | . . . . . . . . 20 . 13 . Miscellaneous . | . . . . . . . . . . . . Route ------- -11/Scrapyard -10/Materials (discovered 4 exits: *Mat x3 / [*Min]) -10/Mines (discovered 2 exits: *Mat x2) -9/Materials -9/Mines (discovered 3 exits: *Mat x2 / *Exi) -9/Exiles -8/Mines -8/Materials (discovered 2 exits: *Fac / Gar) -8/Garrison (discovered 3 exits: *Mat x3) -8/Materials (discovered 3 exits: *Fac x2 / Gar) -8/Garrison (discovered 3 exits: *Fac x3) -7/Factory History --------- Turn | Location | Event 7 | -11/Scrapyard | Discovered new exit (range 13) 1000 | -11/Scrapyard | Entered Materials 1001 | -10/Materials | Build established: Mutant 1343 | -10/Materials | Discovered new exit (range 13) 1463 | -10/Materials | Discovered new exit (range 6) 1603 | -10/Materials | Discovered new exit (range 13) 1937 | -10/Materials | Central database locked down 2546 | -10/Materials | Repaired Lgt. Treads 2572 | -10/Materials | Repaired Lgt. Treads 2810 | -10/Materials | Discovered new exit (range 10) 5021 | -10/Materials | Core integrity fell below 50% 5021 | -10/Materials | High security lockdown imminent 5101 | -10/Materials | High security lockdown engaged 5164 | -10/Materials | Destroyed 8 combat bots 5196 | -10/Materials | Destroyed 8 combat bots 5271 | -10/Materials | Sterilization system engaged 5271 | -10/Materials | Non-combat units ordered to evacuate 5302 | -10/Materials | Destroyed 16 combat bots 5358 | -10/Materials | Entered Mines 5981 | -10/Mines | Discovered new exit (range 14) 6080 | -10/Mines | Joined a pair of Derelicts in attacking an 0b10 outpost 6111 | -10/Mines | Learned location of Storage (-7) 7473 | -10/Mines | Learned Materials emergency access door positions 7653 | -10/Mines | Discovered new exit (range 5) 10263 | -10/Mines | Entered Materials 10263 | -9/Materials | Accompanied by 2 allies 10263 | -9/Materials | Evolved 2 slots: Propulsion x1, Utility x1 10268 | -9/Materials | Led the pair of lost Derelicts to an unsafe place 10663 | -9/Materials | First assault squad dispatched 10737 | -9/Materials | Destroyed 11 combat bots 10833 | -9/Materials | Discovered new exit (range 6) 11101 | -9/Materials | Core integrity fell below 50% 11125 | -9/Materials | Destroyed 14 combat bots 11130 | -9/Materials | Lost 4 parts (1p1n1u1w) 11273 | -9/Materials | Repaired Core Shielding 11943 | -9/Materials | Destroyed 9 combat bots 11985 | -9/Materials | Sterilization system engaged 11985 | -9/Materials | Non-combat units ordered to evacuate 12085 | -9/Materials | Combat units ordered to evacuate 12285 | -9/Materials | Ambient heat levels rising (+10) 12306 | -9/Materials | Build established: Scavenger-Mutant 12435 | -9/Materials | Ambient heat levels rising (+10) 12537 | -9/Materials | Entered Mines 12553 | -9/Mines | Met a Derelict bent on vengeance 12641 | -9/Mines | Discovered new exit (range 9) 12662 | -9/Mines | Received a Rocket Launcher from a helpful Derelict 12773 | -9/Mines | Deemed a non-threat by the Exiles lab entrance 12846 | -9/Mines | A weapon hastily lodged in a ceiling crevice suddenly fell to the ground 13112 | -9/Mines | Discovered new exit (range 11) 13254 | -9/Mines | Assisted by bots powering up and referring to "LRC-V3" 13299 | -9/Mines | Assembled infested the area 13304 | -9/Mines | Assisted by a Guerilla fighting off Assembled 13454 | -9/Mines | Discovered new exit (range 5) 13461 | -9/Mines | Entered Exiles 13501 | -9/Exiles | Met 8R-AWN 13538 | -9/Exiles | Met EX-HEX 13584 | -9/Exiles | Met EX-BIN 13603 | -9/Exiles | Aligned with FarCom system 13605 | -9/Exiles | Given EX-Vault access code 13653 | -9/Exiles | Opened EX-Vault 13664 | -9/Exiles | Found Superbattery 13701 | -9/Exiles | Warned to stay clear of 0b10 Research branches 13749 | -9/Exiles | Met EX-DEC 13757 | -9/Exiles | Learned location of Zion (-6) 14369 | -9/Exiles | Discovered new exit (range 12) 14563 | -9/Exiles | Left Exiles lab with Superbattery 14563 | -9/Exiles | Entered Mines 14997 | -8/Mines | Discovered new exit (range 12) 22057 | -8/Mines | Entered Materials 22057 | -8/Materials | Evolved 2 slots: Propulsion x1, Weapon x1 22075 | -8/Materials | Identified exit to Garrison 22349 | -8/Materials | Build established: Scavenger-Tank 24012 | -8/Materials | Build established: Scavenger-Mutant 24173 | -8/Materials | Repaired Remote Shield 24209 | -8/Materials | Repaired Lgt. Treads 24237 | -8/Materials | Repaired Lgt. Treads 24295 | -8/Materials | Repaired Core Shielding 24315 | -8/Materials | Build established: Scavenger-Tank 24374 | -8/Materials | Central database locked down 24452 | -8/Materials | Discovered new exit (range 10) 24457 | -8/Materials | First assault squad dispatched 26295 | -8/Materials | Garrison activated, responded to threat 26651 | -8/Materials | Build established: Scavenger-Mutant 27012 | -8/Materials | Sterilization system engaged 27012 | -8/Materials | Non-combat units ordered to evacuate 27037 | -8/Materials | Destroyed 8 combat bots 27112 | -8/Materials | Combat units ordered to evacuate 27143 | -8/Materials | Entered Garrison 27151 | -8/Garrison | Installed Relay Interface Framework 27166 | -8/Garrison | Triggered checkpoint 27303 | -8/Garrison | Build established: Scavenger-Tank 27384 | -8/Garrison | Triggered checkpoint 27417 | -8/Garrison | Garrison Relay disabled 27551 | -8/Garrison | Triggered checkpoint 27564 | -8/Garrison | Triggered checkpoint 27684 | -8/Garrison | Discovered new exit (range 13) 27758 | -8/Garrison | Triggered checkpoint 27777 | -8/Garrison | Garrison Relay disabled 27905 | -8/Garrison | Triggered checkpoint 28471 | -8/Garrison | Discovered new exit (range 9) 28513 | -8/Garrison | Triggered checkpoint 28571 | -8/Garrison | Garrison Relay disabled 28592 | -8/Garrison | Triggered checkpoint 28824 | -8/Garrison | Build established: Scavenger-Skirmisher 29053 | -8/Garrison | Triggered checkpoint 29098 | -8/Garrison | Garrison Relay disabled 29135 | -8/Garrison | Discovered new exit (range 14) 29522 | -8/Garrison | Garrison Relay disabled 29799 | -8/Garrison | Build established: Scavenger-Mutant 31529 | -8/Garrison | Triggered checkpoint 31843 | -8/Garrison | Build established: Scavenger-Tank 31877 | -8/Garrison | Entered Materials 31877 | -8/Materials | Accompanied by 6 allies 32462 | -8/Materials | Build established: Tank 32834 | -8/Materials | Discovered new exit (range 13) 33088 | -8/Materials | Core integrity fell below 50% 33477 | -8/Materials | First assault squad dispatched 33804 | -8/Materials | Identified exit to Garrison 34485 | -8/Materials | Discovered new exit (range 12) 35896 | -8/Materials | Garrison activated, responded to threat 35990 | -8/Materials | Sterilization system engaged 35990 | -8/Materials | Non-combat units ordered to evacuate 36079 | -8/Materials | Entered Garrison 36079 | -8/Garrison | Accompanied by 1 ally 36160 | -8/Garrison | Triggered checkpoint 36868 | -8/Garrison | Triggered checkpoint 36947 | -8/Garrison | Discovered new exit (range 11) 36976 | -8/Garrison | Expanded RIF knowledge: Alert ID Control 37077 | -8/Garrison | Triggered checkpoint 37540 | -8/Garrison | Discovered new exit (range 15) 37606 | -8/Garrison | Triggered checkpoint 37804 | -8/Garrison | Triggered checkpoint 37822 | -8/Garrison | Garrison Relay disabled 37853 | -8/Garrison | Discovered new exit (range 14) 38342 | -8/Garrison | Build established: Mutant 38722 | -8/Garrison | Build established: Commander-Mutant 40173 | -8/Garrison | Triggered checkpoint 40244 | -8/Garrison | Garrison Relay disabled 40404 | -8/Garrison | Garrison Relay disabled 40733 | -8/Garrison | Triggered checkpoint 40946 | -8/Garrison | Garrison Relay disabled 41894 | -8/Garrison | Triggered checkpoint 42082 | -8/Garrison | Garrison Relay disabled 42240 | -8/Garrison | Entered Factory 42240 | -7/Factory | Accompanied by 7 allies 42240 | -7/Factory | Evolved 2 slots: Utility x2 42640 | -7/Factory | First assault squad dispatched 42644 | -7/Factory | Garrison activated, responded to threat 42783 | -7/Factory | System corruption reached 10% 42813 | -7/Factory | Lost 6 parts (1n2u3w) 43181 | -7/Factory | Garrison activated, responded to threat 43206 | -7/Factory | Core integrity fell below 50% 43213 | -7/Factory | Core integrity fell below 20% 43221 | -7/Factory | Destroyed self with Mini Grenade Launcher Last Messages --------------- 43213_ Overheating: Core damaged (-133). 43214_ Overheating: Broken Flak Gun damaged (-9). 43214_ Overheating: Hcp. Storage Unit damaged (-157). 43214_ Overheating: Arm. Treads damaged (-5). 43214_ Overheating: Broken Com. Wheel damaged (-5). 43214_ Arm. Treads destroyed. 43214_ Destroyed Arm. Treads. 43214_ Broken Flak Gun destroyed. 43214_ Destroyed Broken Flak Gun. 43215_ Mni. Grenade Launcher broken. 43215_ Overheating: Short circuit. 43215_ Broken Lrn. Tractor Beam destroyed. 43215_ Broken Com. Wheel destroyed. 43217_ Overheating: System interference. 43217_ Imp. Grenade Launcher temporarily disabled. 43218_ Overheating: Broken Mni. Grenade Launcher damaged (-18). 43218_ Broken Mni. Grenade Launcher destroyed. 43220_ Missile Launcher broken. 43220_ Overheating: Short circuit. 43221_ P-60 Hacker destroyed. Map ----- +----------------------------------------------------+ | #################????????????????????????? | | """ / #????????????????????????? | | """ ###### """ #????????????????????????? | | """ #????# """ #????????????????????????? | | #????# """ #????????????????????????? | | """ #????# #????????????????????????? | | """ #????#! """ ##############???????????? | | """ #????# """ # #???????????? | | #????# """ # #???????????? | | [ #????# # #???????????? | | #### #????#####+#### #???????????? | | ##### #?????# #m #???????????? | | # #?????# # #???????????? | | "" !# #?????# + #???????????? | | "" # ####### # #???????????? | | "" # # #???????????? | | ]# ########## #???????????? | | "" #?# #??????# # # #???????????? | | "" #?# #?????## # # #???????????? | | "" #?# #?????? # # ############???????????? | | #?# #??????? # # #??????????????????????? | | %%### ####????? # # ########???????????????? | | +/ %#?????## # ! #???????????????? | | ##########%#?????# # """"????????????????? | | ?????????# #?????#T """"#???????????????? | | ?????????#=#?????## @] """"#???????????????? | | ?????????# #??????# % * """"#???????????????? | | ?????#####+######## ! """"#???????????????? | | ?????# * # % """"#???????????????? | | ?????# # # """"????????????????? | | ?????# # = # #???????????????? | | ###### # ###########?##Y??????????? | | """ # # ##????? ????????????? | | "Y" # ] + ##????"G"" ?????????????? | | + # =##????" " ??????????????? | | # ! # %%#???? " "????????????????? | | # # !g#???? ?????????????????? | | # # g #??? ??????????????????? | | / # # ####+#####+####??????????? | | # # % % w ??????? | | ###########+## % ??????? | | """" ## / i ??????? | | """" ## # ???????? | | """" ## # ???????? | | """" ## #+####+#############+#####????????? | | """" ## # ? ??????????????????????????? | | """" ## # ??????????????????????????? | | ## # ?????????????????????????? | | ? ?# # ????????????????????????? | | ###?#?# [ # ??????????????????????? | +----------------------------------------------------+ Best States ------------- Heat Dissipation 45 Energy Generation 18 Energy Capacity 290 Matter Stores 300 Matter Capacity 300 Sight Range 16 Terrain Scan Density 10 Armor Coverage 600 Resistance: TH 15 Resistance: EM 15 Core Shielding 20 Weapon Shielding 66 Evasion (%) 50 Targeting Accuracy 8 Recoil Reduction 4 Relay Coupler Types 1 Relay Coupler Value 20 Item Schematics ----------------- Hcp. Storage Unit | -10/Materials | Hacked Remote Shield | -8/Materials | Scanalyzed EMP Blaster | -8/Materials | Scanalyzed Grenade Launcher | -8/Materials | Scanalyzed Huge Storage Unit | -8/Materials | Hacked Enh. Autogun | -8/Materials | Scanalyzed Imp. Assault Rifle | -8/Materials | Scanalyzed Spread Laser | -8/Materials | Extracted Robot Schematics ------------------ None Fabricated ------------ Nothing Alien Tech Used ----------------- None Achievements -------------- None Challenges ------------ None Game ------ Seed ImprinterTerrabombBox Manual? 0 Play Time 04:33:16 Cumulative 264.9 hours Start 2022.04.02 @ 23:09:42 End 2022.04.04 @ 19:04:05 Sessions 7 Manual Loads 0 Difficulty Rogue Special Mode None Game No. 71 Rogue 71 Adventurer 0 Explorer 0 Win Type - Total 6 Types 3/1/0/0/2/0/0/0/0 Lore% 58 Gallery% 71 Achievement% 65 Wizard Run 0 Options --------- ASCII 0 Keyboard 0 Movement Arrows Keybinds 0 Fullscreen 0 Font 28/SmallcapsGlow Map View 72x54 Tactical HUD 1 Map Filters NONE Filters NONE Steam 1 RUN: 297d9f68-6170-4a13-a720-aa9a2577a53e